[Event "84th Tata Steel Challengers 2022"]
[Site "Wijk aan Zee"]
[Date "2022.01.29"]
[Round "12.7"]
[White "Vogel, Roven"]
[Black "Maurizzi, Marc`Andria"]
[Result "1/2-1/2"]
[ECO "D37"]
[WhiteElo "2452"]
[BlackElo "2496"]
[Annotator "RC"]
[PlyCount "97"]
[EventDate "2022.01.15"]
[EventType "tourn"]
[EventCountry "NED"]
[SourceTitle "playchess.com"]
[Source "ChessBase"]
[SourceQuality "1"]
[TimeControl "40/6000+30:20/3000+30:900+30"]

1. c4 {[%emt 0:00:04]} e6 {[%emt 0:00:29]} 2. Nc3 {[%emt 0:00:42]} d5 {[%emt 0:00:20]} 3. d4 {[%emt 0:00:10]} a6 {[%emt 0:00:18]} 4. cxd5 {[%emt 0:01:15]} exd5 {[%emt 0:00:04]} 5. Nf3 {[%emt 0:00:09]} Nf6 {[%emt 0:00:04]} 6. Bg5 {[%emt 0:00:07]} Be6 {[%emt 0:00:04]} 7. Bxf6 {[%emt 0:00:11]} Qxf6 {[%emt 0:00:05]} 8. Qb3 {[%emt 0:00:07]} Ra7 {[%emt 0:00:05]} 9. a3 {[%emt 0:00:09]} b5 {[%emt 0:00:19]} 10. Qc2 {[%emt 0:09:59]} Bf5 {[%emt 0:08:05]} 11. Qd2 {[%emt 0:03:11]} c6 {[%emt 0:00:33]} 12. g3 {[%emt 0:02:16]} Bd6 {[%emt 0:04:59]} 13. Bg2 {[%emt 0:00:56]} O-O {[%emt 0:00:46]} 14. O-O {[%emt 0:02:21]} Re8 {[%emt 0:02:57]} 15. Nh4 {[%emt 0:02:12]} Rae7 {[%emt 0:14:35]} 16. f3 {[%emt 0:07:11]} Bc8 {[%emt 0:03:08]} 17. f4 {[%emt 0:12:55]} b4 {[%emt 0:04:44]} 18. axb4 {[%emt 0:00:44]} Bxb4 {[%emt 0:00:24]} 19. Rf2 {[%emt 0:08:16]} Qd6 {[%emt 0:04:50]} 20. Nf3 {[%emt 0:01:42]} f6 {[%emt 0:00:44]} 21. Ne1 {[%emt 0:04:07]} a5 {[%emt 0:05:02]} 22. Nd3 {[%emt 0:03:28]} Ba6 {[%emt 0:01:25]} 23. Bf3 {[%emt 0:01:35]} Bc4 {[%emt 0:04:32]} 24. Qc2 {[%emt 0:06:30]} Nd7 {[%emt 0:05:34]} 25. Nxb4 {[%emt 0:07:33]} axb4 {[%emt 0:00:44]} 26. Nb1 {[%emt 0:16:48]} Nb6 {[%emt 0:07:25]} 27. Qd1 {[%emt 0:01:41]} Re3 {[%emt 0:06:58]} 28. Nd2 {[%emt 0:01:02]} b3 {[%emt 0:00:34]} 29. Nf1 {[%emt 0:01:08]} R3e7 {[%emt 0:00:37]} 30. Qd2 {[%emt 0:02:27]} Qb8 {[%emt 0:02:55]} 31. g4 {[%emt 0:01:43]} Ra7 {[%emt 0:02:07]} 32. Rb1 {[%emt 0:00:50]} Ra2 {[%emt 0:03:26]} 33. Ng3 {[%emt 0:00:19]} Na4 {[%emt 0:00:29]} 34. Kg2 {[%emt 0:04:41]} Qd6 {[%emt 0:01:11]} 35. f5 {[%emt 0:00:39]} Ra8 {[%emt 0:02:31]} 36. Rff1 {[%emt 0:04:50]} Qa3 {[%emt 0:02:35]} 37. Qe3 {[%emt 0:00:05]} Nxb2 {[%emt 0:00:28]} 38. Qe6+ {[%emt 0:01:33]} Kh8 {[%emt 0:02:22]} 39. Qxc6 {[%emt 0:00:37]} Rd8 {[%emt 0:01:49]} 40. Nh5 {[%emt 0:03:44]} Qe7 {[%emt 0:02:36]} 41. Nf4 {[%emt 0:05:28]} Ra6 {[%emt 0:11:11]} 42. Qc5 {[%emt 0:00:28]} Qxc5 {[%emt 0:00:29]} 43. dxc5 {[%emt 0:00:10]} Na4 {[%emt 0:00:15]} 44. Rfc1 {[%emt 0:02:21]} Nxc5 {[%emt 0:07:59]} 45. Nxd5 {[%emt 0:00:39]} Bxd5 {[%emt 0:00:06]} 46. Rxc5 {[%emt 0:00:34]} Bg8 {[%emt 0:00:49]} 47. Rb5 {[%emt 0:00:14]} Ra3 {[%emt 0:00:47]} 48. Rc1 {[%emt 0:04:04]} Ra7 {[%emt 0:02:20]} 49. h4 {[%emt 0:03:04]} 1/2-1/2